Cogmind - Beta 13 *** ADVENTURER MODE // 2024.04.03 @ 16:58:48 Player: jmw150 Result: Self-destructed Performance ------------- Evolutions (1) 500 Regions Visited (2) 400 Robots Destroyed (24) 120 Value Destroyed (358) 358 Prototype IDs (0) 0 Alien Tech Used (0) 0 Bonus (0) 0 TOTAL SCORE: 1378 Bonus ------- None Cogmind --------- Core Integrity 388/400 Matter 272/300 Energy 113/125 System Corruption 0% Temperature Cool (0) Movement Treading (240) Ox1 Location -9/Materials Parts ------- > --- POWER (1) -------- Light Ion Engine > --- PROPULSION (3) --- Light Treads Light Treads Light Treads > --- UTILITY (2) ------ Huge Storage Unit Improved Terrain Scanner > --- WEAPON (3) ------- Medium Laser Assault Rifle Heavy Assault Rifle > --- INVENTORY (25) --- Light Ion Engine Compact Wheel Compact Wheel Medium Storage Unit Small Battery (100) Visual Processing Unit Terrain Scanner Seismic Detector Light Armor Plating Medium Laser Small Laser Heavy Assault Rifle Datajack Mining Laser Mining Laser Peak State ------------ > --- POWER ------------ Light Ion Engine > --- PROPULSION ------- Light Treads Light Treads Light Treads > --- UTILITY ---------- Huge Storage Unit Improved Terrain Scanner > --- WEAPON ----------- Medium Laser Assault Rifle Heavy Assault Rifle > --- INVENTORY -------- Light Ion Engine Compact Wheel Compact Wheel Medium Storage Unit Small Battery Visual Processing Unit Terrain Scanner Seismic Detector Light Armor Plating Medium Laser Small Laser Heavy Assault Rifle Datajack Mining Laser Mining Laser [Rating: 13] Favorites ----------- Power Light Ion Engine Engine Light Ion Engine Propulsion Light Treads Treads Light Treads Utility Improved Terrain Scanner Device Improved Terrain Scanner Storage Huge Storage Unit Weapon Medium Laser Energy Gun Medium Laser Ballistic Gun Assault Rifle Special Weapon Mining Laser Build | -11 -10 -9 ------- Run | Yrd Mat Mat Slots Evolved 2 | . . 2 Power . | . . . Propulsion 1 | . . 1 Utility . | . . . Weapon 1 | . . 1 Parts Attached 16 | 7 5 4 Power 1 | 1 . . Engine 1 | 1 . . Core . | . . . Reactor . | . . . Propulsion 3 | 2 . 1 Treads 3 | 2 . 1 Leg . | . . . Wheel . | . . . Hover . | . . . Flight . | . . . Utility 4 | 2 2 . Device 1 | 1 . . Storage 3 | 1 2 . Processor . | . . . Hackware . | . . . Protection . | . . . Artifact . | . . . Weapon 8 | 2 3 3 Energy Gun 3 | 1 . 2 Energy Cannon . | . . . Ballistic Gun 3 | 1 1 1 Ballistic Cannon . | . . . Launcher . | . . . Special Weapon 2 | . 2 . Impact Weapon . | . . . Slashing Weapon . | . . . Piercing Weapon . | . . . Special Melee Weapon . | . . . Unidentified Prototypes . | . . . Parts Lost . | . . . Power . | . . . Propulsion . | . . . Utility . | . . . Weapon . | . . . Highest Loss Streak . | . . . To Critical Strikes . | . . . Average Slot Usage (%) 97 | . 100 88 Engine 13 | . 14 11 Treads 26 | . 28 22 Device 13 | . 14 11 Storage 13 | . 14 11 Energy Gun 12 | . 12 12 Ballistic Gun 10 | . 9 14 Special Weapon 5 | . 5 5 Naked Turns . | . . . Heaviest Build 91 | 13 88 91 Greatest Support 40 | 40 40 40 Greatest Overweight (x) 2 | 2 2 2 Average Overweight (x) 1 | . 1 2 Largest Inventory Capacity 25 | 8 25 25 Average Capacity 22 | 7 24 25 Most Carried 16 | 8 12 16 Average Carried 10 | 5 10 12 Final Capacity 25 | 8 25 25 Final Carried 15 | 8 12 15 Class Distribution -------------------- 82% | Mutant 17% | Skirmisher Dominant Class ---------------- Mutant | -10/Materials Skirmisher | -9/Materials Resources | -11 -10 -9 ----------- Run | Yrd Mat Mat Matter Collected 452 | 288 85 79 Remotely . | . . . Salvage Created 867 | 260 292 315 Parts 65 | 23 26 16 Haulers Intercepted 1 | . . 1 Recyclers Shooed 1 | 1 . . Parts Field Recycled . | . . . Retrieved Matter . | . . . Parts Self-Destructed . | . . . Prevented . | . . . Kills | -11 -10 -9 ------- Run | Yrd Mat Mat Combat Hostiles Destroyed 10 | . 7 3 Guns 10 | . 7 3 Classes Destroyed 8 | 3 3 2 Worker 2 | 2 . . Tunneler 5 | 5 . . Hauler 1 | . . 1 Recycler 3 | 1 1 1 Watcher 3 | . 2 1 Swarmer 5 | . 5 . Grunt 2 | . 2 . Sentry 3 | . . 3 Best Kill Streak 3 | 3 3 2 Combat Bots Only 2 | . 2 2 Max Kills in Single Turn 2 | 1 2 1 Gunslinging 1 | . 1 . Exploded . | . . . Melee . | . . . Uniques/NPCs Destroyed . | . . . Combat | -11 -10 -9 -------- Run | Yrd Mat Mat Hostile Shots Fired 38 | . 24 14 Missed 8 | . 2 6 Damage Taken 240 | . 146 94 Core 33 | . 21 12 Absorbed by Shields . | . . . Ignored by Resistances 74 | . 48 26 Core Remaining (%) 95 | 100 91 . Volleys Fired 45 | 12 21 12 Largest 3 | 2 2 3 Hottest 150 | 70 150 120 Shots Fired 89 | 20 37 32 Gun 83 | 20 31 32 Cannon . | . . . Launcher . | . . . Special 6 | . 6 . Kinetic 41 | 8 15 18 Thermal 48 | 12 22 14 Explosive . | . . . Electromagnetic . | . . . Robot Hit Streak 18 | 11 8 18 Robot Miss Streak 3 | 1 2 3 Penetration Max . | . . . Secondary Targets 2 | . 2 . Max Gunslinging Chain 1 | . 1 . Shots Hit Robots 62 | 16 21 25 Core Hits 31 | 9 12 10 Critical Kills . | . . . Critical Parts Destroyed 1 | . 1 . Critical Strikes 6 | 1 4 1 Burn 5 | 1 3 1 Destroy 1 | . 1 . Melee Attacks . | . . . Impact . | . . . Slashing . | . . . Piercing . | . . . Sneak Attacks . | . . . Combat Hostiles . | . . . Follow-up Attacks . | . . . Damage Inflicted 813 | 188 292 333 Guns 791 | 188 270 333 Cannons . | . . . Explosions . | . . . Melee . | . . . Ramming 22 | . 22 . Kinetic 367 | 42 132 193 Thermal 424 | 146 138 140 Explosive . | . . . Electromagnetic . | . . . Impact . | . . . Slashing . | . . . Piercing . | . . . Highest Corruption . | . . . Average Corruption . | . . . Corruption Purged . | . . . Corruption Blocked . | . . . Overload Shots . | . . . Overflow Damage . | . . . Projectiles . | . . . Explosions . | . . . Melee . | . . . Knockbacks . | . . . Impact . | . . . Kinetic . | . . . Secondary . | . . . Self-Inflicted Damage . | . . . Shots . | . . . Rammed 2 | . 2 . Targets Rammed 2 | . 2 . Kicked . | . . . Crushed . | . . . Highest Temperature 72 | 27 54 72 Average Temperature 23 | 12 21 30 Received Heat Transfer 66 | . 30 36 Siege Activations . | . . . Robots Corrupted . | . . . Combat Hostiles . | . . . Parts Fried . | . . . Impact Corruptions . | . . . Robots Melted . | . . . Combat Hostiles . | . . . Parts Melted 2 | 1 1 . Heat Transferred 1628 | 518 629 481 Parts Sabotaged . | . . . Parts Stolen . | . . . Parts Stripped . | . . . Power Chain Reactions . | . . . Alert | -11 -10 -9 ------- Run | Yrd Mat Mat Peak Influence 224 | 40 224 190 Initial 51 | . 22 51 Average 79 | 21 84 95 Maximum Alert Level 1 | . 1 . Low Security (%) 99 | 100 98 100 Level 1 . | . 1 . Level 2 . | . . . Level 3 . | . . . Level 4 . | . . . Level 5 . | . . . High Security . | . . . Max Security . | . . . Squads Dispatched 1 | . 1 . Investigation 1 | . 1 . Extermination . | . . . Reinforcement . | . . . Assault . | . . . Garrison . | . . . Intercept . | . . . Searches Triggered . | . . . Construction Impeded . | . . . Haulers Reinforced . | . . . Active Scanning Responses . | . . . Cargo Convoy Interrupts . | . . . Stealth | -11 -10 -9 --------- Run | Yrd Mat Mat Distress Signals 3 | . 3 . Communications Jammed . | . . . Distress Signals . | . . . Times Spotted 19 | . 14 5 Peak Tracking Total 5 | . 5 2 Tactical Retreats 7 | . 7 . Traps | -11 -10 -9 ------- Run | Yrd Mat Mat Traps Triggered . | . . . Indirectly . | . . . Trap Hack Attempts . | . . . Triggered . | . . . Disarmed 4 | . 4 . Reprogrammed . | . . . Reused . | . . . Traps Extracted . | . . . Installed . | . . . Triggered . | . . . Machines | -11 -10 -9 ---------- Run | Yrd Mat Mat Machines Disabled . | . . . Max in Single Turn . | . . . Machines Repaired . | . . . Machines Dismantled . | . . . Machines Sabotaged . | . . . Overloaded Fab Kills . | . . . Hacking | -11 -10 -9 --------- Run | Yrd Mat Mat Machines Accessed 4 | . 4 . Terminals 3 | . 3 . Fabricators . | . . . Repair Stations . | . . . Recycling Units 1 | . 1 . Scanalyzers . | . . . Garrison Access . | . . . Total Hacks 17 | . 17 . Successful 8 | . 8 . Failed 9 | . 9 . Catastrophic . | . . . Database Lockouts . | . . . Manual . | . . . Terminals 16 | . 16 . Fabricators . | . . . Repair Stations . | . . . Recycling Units 1 | . 1 . Scanalyzers . | . . . Garrison Access . | . . . Terminal Hacks 7 | . 7 . Alert Level 1 | . 1 . Disarm Traps 1 | . 1 . Transport Status 1 | . 1 . Investigation Status 1 | . 1 . Assault Status 1 | . 1 . Recall Investigation 1 | . 1 . Hauler Manifests 1 | . 1 . Fabricator Hacks . | . . . Repair Station Hacks . | . . . Recycling Unit Hacks 1 | . 1 . Recycle Component 1 | . 1 . Scanalyzer . | . . . Garrison Access Hacks . | . . . Unauthorized Hacks . | . . . Terminals . | . . . Fabricators . | . . . Repair Stations . | . . . Recycling Units . | . . . Scanalyzers . | . . . Garrison Access . | . . . Data Cores Recovered . | . . . Used . | . . . Hacking Detections 2 | . 2 . Full Trace Events 2 | . 2 . Feedback Events . | . . . Feedback Blocked . | . . . Robot Schematics Acquired . | . . . Robots Built . | . . . Authchips . | . . . Time . | . . . Total Robot Build Rating . | . . . Part Schematics Acquired . | . . . Parts Built . | . . . Authchips . | . . . Time . | . . . Total Part Build Rating . | . . . Parts Repaired . | . . . Time . | . . . Parts Recycled 1 | . 1 . Recycled Matter . | . . . Retrieved Matter . | . . . Retrieved Components . | . . . Parts Scanalyzed . | . . . Part Schematics Acquired . | . . . Parts Damaged . | . . . Bothacking | -11 -10 -9 ------------ Run | Yrd Mat Mat Used RIF Installer . | . . . Robots Hacked . | . . . Non-combat . | . . . Combat . | . . . Robot Hacks Applied . | . . . Relay Couplers Released . | . . . Fabnet Peak Effective % . | . . . Robots Rewired . | . . . Allies Hacked . | . . . Hacks Repelled . | . . . Allies | -11 -10 -9 -------- Run | Yrd Mat Mat Total Allies . | . . . Largest Group . | . . . Highest-Rated Group . | . . . Highest-Rated Ally . | . . . Total Orders . | . . . Ally Attacks . | . . . Total Damage . | . . . Kills . | . . . Allies Corrupted . | . . . Allies Melted . | . . . Intel | -11 -10 -9 ------- Run | Yrd Mat Mat Robot Analysis Total . | . . . Derelict Logs Recovered . | . . . Drone Launches . | . . . Drone Recoveries . | . . . Exploration | -11 -10 -9 ------------- Run | Yrd Mat Mat Turns Passed 1530 | 158 1116 256 Spaces Moved 425 | 68 292 65 Core 8 | 8 . . Treads 417 | 60 292 65 Legs . | . . . Wheels . | . . . Hover . | . . . Flight . | . . . Fastest Speed 50 | 50 160 320 Average Speed 283 | 152 305 320 Slowest Speed 320 | 160 320 320 Overloaded Moves . | . . . Propulsion Burnouts . | . . . Robots Hopped . | . . . Cave-ins Triggered . | . . . Exploration Rate (%) 17 | 4 38 10 Regions Visited 2 Branch Regions . Pre-discovered Areas . | . . . Known Exits Taken . | . . . Unknown Exits Taken 2 | 1 1 . Scrap Searched . | . . . Spaces Dug 5 | . 5 . Terrain Destroyed 6 | . 6 . Melee . | . . . Projectile 6 | . 6 . AOE . | . . . Terrain Rammed . | . . . Walls Destroyed . | . . . Machines Disabled . | . . . Actions | -11 -10 -9 --------- Run | Yrd Mat Mat Total 653 | 103 463 87 Wait 133 | . 133 . Move 423 | 67 291 65 Hop . | . . . Pick Up 29 | 16 8 5 Fast Attach . | . . . Attach 10 | 7 . 3 Detach 1 | . . 1 Swap 6 | . 5 1 Drop 4 | 1 3 . Fire 45 | 12 21 12 Melee . | . . . Ram . | . . . Kick . | . . . Crush 2 | . 2 . Escape Stasis . | . . . Rewire . | . . . Trap . | . . . Miscellaneous . | . . . Route ------- -11/Scrapyard -10/Materials -9/Materials History --------- Turn | Location | Event 8 | -11/Scrapyard | Discovered new exit (range 16) 159 | -11/Scrapyard | Entered Materials 308 | -10/Materials | Build established: Mutant 1195 | -10/Materials | Discovered new exit (range 15) 1275 | -10/Materials | Entered another Materials area 1275 | -9/Materials | Evolved 2 slots: Propulsion x1, Weapon x1 1531 | -9/Materials | Self-destructed Last Messages --------------- Acquired Visual Processing Unit. A-02 Transporter destroyed. K-01 Serf collects debris. Y-45 Defender destroyed. K-01 Serf collects debris. R-06 Scavenger collects Prototype Flight Unit. Acquired 18 matter. K-01 Serf collects debris. R-06 Scavenger collects Weight Redist. System. R-06 Scavenger collects Lgt. Treads. K-01 Serf collects debris. R-06 Scavenger collects Med. Storage Unit. R-06 Scavenger collects Beam Rifle. K-01 Serf collects debris. R-06 Scavenger collects Hvy. Assault Rifle. R-06 Scavenger collects Lgt. Armor Plating. R-06 Scavenger destroyed. W-16 Scout destroyed. Acquired Lgt. Treads. R-06 Scavenger collects Hover Unit. Map ----- +----------------------------------------------------+ | ??# """?# #??????? | | ??####### ############# #??????? | | ?????####+###?###????## ###?##?? | | ?????# #?# ?# #??#??? | | ?????# """" ### # ## ##?? | | ????## """" #?# """ + % #??? | | ?????# """" #?? """ # ####??? | | ?????# #?# ""???# #?????? | | ??#??# #???? ? ?### ###??? ?? | | #######+###########??#%#???????? | | #### ###?????? | | ## #?????? | | ## # """ # | | ##+################### + """ # | | ??????????##????#????# # """ # | | ????????????#?#??????# #??? ?? | | ?????????????#??????### ##?????? | | ????? ????##????????? # !##?????? | | ??????????##?##???????+ [%#??????? | | ???? ??#??????????????#]%=##+#???# | | ???????????#??????????# =*= #???? | | ??????????????????? ? # [ #???? | | ???????????????#?????##! #???? | | ??????????????????#???#%* #???? | | ??????????????????????# #???? | | ??????????????????????#r%@ #???? | | ?????????????????????# ! # #???? | | ???????????? ???"?"??# # #???? | | ?????????????????????+ # #???? | | ???????????????????? # [ #?#???? | | ??????????????????? # #?????? | | ?????????????????? ?##u ##?????? | | ?????????????????##???# #??????? | | ??????????????????????# #??????? | | ??????????????????????# #??????? | | ??????????????????????# #??????? | | ??????????????????????# #??????? | | ??????????????????????# ???? ??? | | ??????????????????????+ ???????? | | ??????????????????????# ???????? | | ??????????????????????? ???????? | | ?????????????????????????????????? | | ?????????????????????????????????? | | ?????????????????????????????????? | | ?????????????????????????????????? | | ?????????????????????????????????? | | ?????????????????????????????????? | | ?????????????????????????????????? | | ?????????????????????????????????? | | ?????????????????????????????????? | +----------------------------------------------------+ Best States ------------- Heat Dissipation 28 Energy Generation 10 Energy Capacity 125 Matter Stores 300 Matter Capacity 300 Sight Range 16 Terrain Scan Range 16 Terrain Scan Density 10 Resistance: KI 20 Resistance: TH 20 Resistance: EX 20 Resistance: EM 20 Resistance: I 20 Resistance: S 20 Resistance: P 20 Evasion (%) 40 Recoil Reduction 2 Offensive Hacking 10 Item Schematics ----------------- None Robot Schematics ------------------ None Fabricated ------------ Nothing Alien Tech Used ----------------- None Achievements -------------- None Challenges ------------ None Game ------ Seed magos Manual? 1 Play Time 00:21:15 Cumulative 18.9 hours Start 2024.04.03 @ 16:15:12 End 2024.04.03 @ 16:58:48 Sessions 3 Manual Loads 0 Difficulty Adventurer Special Mode None Game No. 4 Rogue 0 Adventurer 4 Explorer 0 Win Type - Total 0 Types 0/0/0/0/0/0/0/0/0 Lore% 2 Gallery% 12 Achievement% 11 Wizard Run 0 Options --------- Layout 1 ASCII 0 Keyboard 0 Movement Arrows Keybinds 0 Fullscreen 1 Font 24/Smallcaps Map View 50x35 Zoom Use 0% Tactical HUD 0 Map Filters NONE Filters NONE Steam 1 RUN: 59c62ef9-d2c9-41d2-a1f0-404f674e093d